Cogmind - Beta 13 @@@ ROGUE MODE // 2024.03.06 @ 11:03:07 Player: StarSirius Result: Destroyed by 8R-AWN via exploding EX-Generator Performance ------------- Evolutions (1) 500 Regions Visited (4) 800 Robots Destroyed (19) 95 Value Destroyed (531) 531 Prototype IDs (1) 20 Alien Tech Used (0) 0 Bonus (300) 300 TOTAL SCORE: 2246 Bonus ------- Aligned with FarCom 300 Cogmind --------- Core Integrity 0/400 Matter 172/300 Energy 280/280 System Corruption 0% Temperature Cool (24) Movement Rolling (95) Ox1 Location -9/Exiles Parts ------- > --- POWER (1) -------- Heavy Ion Engine > --- PROPULSION (4) --- Wheel Wheel > --- UTILITY (2) ------ Medium Storage Unit > --- WEAPON (2) ------- Beam Cannon > --- INVENTORY (10) --- Heavy Ion Engine Nuclear Core Wheel Heat Sink Advanced Visual Processing Unit Recoil Stabilizer Medium Laser Particle Gun Autogun Peak State ------------ > --- POWER ------------ Heavy Ion Engine > --- PROPULSION ------- Light Treads Aluminum Leg Aluminum Leg Wheel > --- UTILITY ---------- Cooling System Medium Storage Unit > --- WEAPON ----------- Medium Laser Heavy Assault Rifle > --- INVENTORY -------- Heavy Ion Engine Light Treads Heat Sink Advanced Visual Processing Unit Recoil Stabilizer Particle Gun Beam Cannon Autogun Grenade Launcher Mining Laser [Rating: 14] Favorites ----------- Power Heavy Ion Engine Engine Heavy Ion Engine Propulsion Aluminum Leg Treads Light Treads Leg Aluminum Leg Wheel Wheel Utility Medium Storage Unit Device Heat Sink Storage Medium Storage Unit Processor Advanced Visual Processing Unit Protection Light Armor Plating Weapon Medium Laser Energy Gun Medium Laser Energy Cannon Beam Cannon Ballistic Gun Assault Rifle Launcher Grenade Launcher Special Weapon Mining Laser Build | -11 -10 -9 -9 -9 ------- Run | Yrd Mat Mat Min Exi Slots Evolved 2 | . . 2 . . Power . | . . . . . Propulsion 2 | . . 2 . . Utility . | . . . . . Weapon . | . . . . . Parts Attached 48 | . 6 23 15 4 Power 2 | . . 1 . 1 Engine 2 | . . 1 . 1 Core . | . . . . . Reactor . | . . . . . Propulsion 14 | . . 5 9 . Treads 3 | . . 2 1 . Leg 3 | . . 3 . . Wheel 8 | . . . 8 . Hover . | . . . . . Flight . | . . . . . Utility 7 | . 2 4 1 . Device 3 | . . 2 1 . Storage 2 | . 2 . . . Processor 1 | . . 1 . . Hackware . | . . . . . Protection 1 | . . 1 . . Artifact . | . . . . . Weapon 25 | . 4 13 5 3 Energy Gun 3 | . . 2 1 . Energy Cannon 3 | . 2 . . 1 Ballistic Gun 6 | . . 5 1 . Ballistic Cannon . | . . . . . Launcher 5 | . . 2 2 1 Special Weapon 8 | . 2 4 1 1 Impact Weapon . | . . . . . Slashing Weapon . | . . . . . Piercing Weapon . | . . . . . Special Melee Weapon . | . . . . . Unidentified Prototypes 1 | . . 1 . . Parts Lost 12 | . . 2 5 5 Power . | . . . . . Propulsion 7 | . . 1 4 2 Utility 2 | . . 1 . 1 Weapon 3 | . . . 1 2 Highest Loss Streak 5 | . . 1 5 5 To Critical Strikes 2 | . . . . 2 Average Slot Usage (%) 98 | . 97 100 98 92 Engine 11 | . 14 11 11 11 Treads 9 | . . 11 10 9 Leg 23 | . 28 33 19 . Wheel 8 | . . . 12 31 Device 6 | . . . 11 9 Storage 12 | . 27 11 11 11 Protection 2 | . . 8 . . Energy Gun 10 | . 2 10 12 14 Energy Cannon 2 | . 17 3 . 1 Ballistic Gun 1 | . 1 4 . . Special Weapon 6 | . 5 3 9 1 Naked Turns . | . . . . . Heaviest Build 27 | 13 24 27 25 25 Greatest Support 30 | 20 20 30 30 30 Greatest Overweight (x) 2 | . 1 1 2 1 Average Overweight (x) . | . . . 1 . Largest Inventory Capacity 10 | 8 10 10 10 10 Average Capacity 9 | 8 8 10 10 10 Most Carried 10 | 6 10 10 10 10 Average Carried 9 | 6 7 9 9 9 Final Capacity 10 | 8 10 10 10 10 Final Carried 10 | 6 10 10 10 9 Class Distribution -------------------- 55% | Scavenger-Mutant 44% | Mutant Dominant Class ---------------- Mutant | -10/Materials Mutant | -9/Materials Scavenger-Mutant | -9/Mines Scavenger-Mutant | -9/Exiles Resources | -11 -10 -9 -9 -9 ----------- Run | Yrd Mat Mat Min Exi Matter Collected 713 | 200 39 325 149 . Remotely . | . . . . . Salvage Created 565 | . 69 407 64 25 Parts 35 | . 5 27 3 . Haulers Intercepted . | . . . . . Recyclers Shooed 1 | . . 1 . . Parts Field Recycled . | . . . . . Retrieved Matter . | . . . . . Parts Self-Destructed . | . . . . . Prevented . | . . . . . Kills | -11 -10 -9 -9 -9 ------- Run | Yrd Mat Mat Min Exi Combat Hostiles Destroyed 26 | . 1 12 6 7 Guns 8 | . . 6 2 . Cannons 5 | . 1 4 . . AOE 13 | . . 2 4 7 Classes Destroyed 8 | . 2 3 3 . Worker 2 | . . . 2 . Watcher 2 | . 1 1 . . Swarmer 4 | . . 4 . . Grunt 5 | . 1 4 . . Brawler 1 | . . 1 . . Sentry 3 | . . 3 . . Demolisher 2 | . . . 2 . Assembled 11 | . . . 4 7 Best Kill Streak 7 | . 1 5 4 7 Combat Bots Only 7 | . 1 5 4 7 Max Kills in Single Turn 2 | . 1 1 2 2 Gunslinging . | . . . . . Exploded 2 | . . 1 2 2 Melee . | . . . . . Uniques/NPCs Destroyed . | . . . . . Combat | -11 -10 -9 -9 -9 -------- Run | Yrd Mat Mat Min Exi Hostile Shots Fired 130 | . 4 87 17 22 Missed 24 | . 1 16 2 5 Damage Taken 1981 | . 35 847 589 510 Core 488 | . . 180 133 175 Absorbed by Shields . | . . . . . Core Remaining (%) 100 | 100 100 . . . Volleys Fired 126 | . 18 76 17 15 Largest 2 | . 2 2 2 1 Hottest 150 | . 120 150 150 100 Shots Fired 171 | . 21 112 23 15 Gun 86 | . . 70 16 . Cannon 31 | . 6 20 . 5 Launcher 14 | . . 3 3 8 Special 40 | . 15 19 4 2 Kinetic 35 | . . 31 4 . Thermal 122 | . 21 78 16 7 Explosive 14 | . . 3 3 8 Electromagnetic . | . . . . . Robot Hit Streak 17 | . 2 10 17 4 Robot Miss Streak 3 | . 1 3 3 . Penetration Max . | . . . . . Secondary Targets 1 | . . . 1 . Max Gunslinging Chain 1 | . . . 1 . Shots Hit Robots 72 | . 4 52 13 3 Core Hits 52 | . 2 23 16 11 Critical Kills . | . . . . . Critical Parts Destroyed . | . . . . . Critical Strikes 1 | . . 1 . . Burn 1 | . . 1 . . Melee Attacks . | . . . . . Impact . | . . . . . Slashing . | . . . . . Piercing . | . . . . . Sneak Attacks . | . . . . . Combat Hostiles . | . . . . . Follow-up Attacks . | . . . . . Damage Inflicted 1693 | . 71 997 317 308 Guns 727 | . . 589 138 . Cannons 175 | . 71 104 . . Explosions 791 | . . 304 179 308 Melee . | . . . . . Ramming . | . . . . . Kinetic 284 | . . 241 43 . Thermal 618 | . 71 452 95 . Explosive 791 | . . 304 179 308 Electromagnetic . | . . . . . Impact . | . . . . . Slashing . | . . . . . Piercing . | . . . . . Highest Corruption . | . . . . . Average Corruption . | . . . . . Corruption Purged . | . . . . . Corruption Blocked . | . . . . . Overload Shots . | . . . . . Overflow Damage 24 | . . . . 24 Projectiles . | . . . . . Explosions 24 | . . . . 24 Melee . | . . . . . Knockbacks . | . . . . . Impact . | . . . . . Kinetic . | . . . . . Secondary . | . . . . . Self-Inflicted Damage 94 | . . . 16 78 Shots 5 | . . . 2 3 Rammed . | . . . . . Targets Rammed . | . . . . . Kicked . | . . . . . Crushed . | . . . . . Highest Temperature 334 | . 60 334 . 32 Average Temperature 84 | . 24 93 . 17 Received Heat Transfer 303 | . 18 225 . 60 Effects 1 | . . 1 . . Energy Bleed 1 | . . 1 . . Siege Activations . | . . . . . Robots Corrupted . | . . . . . Combat Hostiles . | . . . . . Parts Fried . | . . . . . Impact Corruptions . | . . . . . Robots Melted . | . . . . . Combat Hostiles . | . . . . . Parts Melted 1 | . . 1 . . Heat Transferred 1591 | . 148 1184 259 . Parts Sabotaged . | . . . . . Parts Stolen . | . . . . . Parts Stripped . | . . . . . Power Chain Reactions . | . . . . . Alert | -11 -10 -9 -9 -9 ------- Run | Yrd Mat Mat Min Exi Peak Influence 260 | . 68 260 68 . Initial 34 | . . 28 34 . Average 65 | . 20 146 21 . Maximum Alert Level 1 | . . 1 . . Low Security (%) 94 | 100 100 83 100 . Level 1 5 | . . 16 . . Level 2 . | . . . . . Level 3 . | . . . . . Level 4 . | . . . . . Level 5 . | . . . . . High Security . | . . . . . Max Security . | . . . . . Squads Dispatched 3 | . 1 2 . . Investigation 1 | . . 1 . . Extermination . | . . . . . Reinforcement 2 | . 1 1 . . Assault . | . . . . . Garrison . | . . . . . Intercept . | . . . . . Searches Triggered . | . . . . . Construction Impeded . | . . . . . Haulers Reinforced . | . . . . . Active Scanning Responses . | . . . . . Cargo Convoy Interrupts . | . . . . . Stealth | -11 -10 -9 -9 -9 --------- Run | Yrd Mat Mat Min Exi Distress Signals 1 | . . 1 . . Communications Jammed . | . . . . . Distress Signals . | . . . . . Times Spotted 34 | . 2 18 6 8 Peak Tracking Total 9 | . 2 4 4 9 Tactical Retreats . | . . . . . Traps | -11 -10 -9 -9 -9 ------- Run | Yrd Mat Mat Min Exi Traps Triggered 1 | . . 1 . . Indirectly . | . . . . . Trap Hack Attempts . | . . . . . Triggered . | . . . . . Disarmed . | . . . . . Reprogrammed . | . . . . . Reused . | . . . . . Traps Extracted . | . . . . . Installed . | . . . . . Triggered . | . . . . . Machines | -11 -10 -9 -9 -9 ---------- Run | Yrd Mat Mat Min Exi Machines Disabled 4 | . . 1 . 3 Max in Single Turn 1 | . . 1 . 1 Machines Repaired . | . . . . . Machines Dismantled . | . . . . . Machines Sabotaged . | . . . . . Overloaded Fab Kills . | . . . . . Hacking | -11 -10 -9 -9 -9 --------- Run | Yrd Mat Mat Min Exi Machines Accessed 10 | . . 7 . 3 Terminals 6 | . . 6 . . Fabricators . | . . . . . Repair Stations . | . . . . . Recycling Units . | . . . . . Scanalyzers 1 | . . 1 . . Garrison Access . | . . . . . Total Hacks 42 | . . 16 . 26 Successful 34 | . . 8 . 26 Failed 8 | . . 8 . . Catastrophic 1 | . . 1 . . Database Lockouts . | . . . . . Manual 13 | . . 13 . . Terminals 13 | . . 13 . . Fabricators . | . . . . . Repair Stations . | . . . . . Recycling Units . | . . . . . Scanalyzers 3 | . . 3 . . Garrison Access . | . . . . . Terminal Hacks 30 | . . 4 . 26 Record 26 | . . . . 26 Branch Access Points 1 | . . 1 . . Terminal Index 1 | . . 1 . . Zone Layout 2 | . . 2 . . Fabricator Hacks . | . . . . . Repair Station Hacks . | . . . . . Recycling Unit Hacks . | . . . . . Scanalyzer 1 | . . 1 . . Insert Component 1 | . . 1 . . Garrison Access Hacks . | . . . . . Unauthorized Hacks 3 | . . 3 . . Terminals 3 | . . 3 . . Botnet 3 | . . 3 . . Fabricators . | . . . . . Repair Stations . | . . . . . Recycling Units . | . . . . . Scanalyzers . | . . . . . Garrison Access . | . . . . . Data Cores Recovered . | . . . . . Used . | . . . . . Hacking Detections 7 | . . 7 . . Full Trace Events . | . . . . . Feedback Events . | . . . . . Feedback Blocked . | . . . . . Robot Schematics Acquired . | . . . . . Robots Built . | . . . . . Authchips . | . . . . . Time . | . . . . . Total Robot Build Rating . | . . . . . Part Schematics Acquired . | . . . . . Parts Built . | . . . . . Authchips . | . . . . . Time . | . . . . . Total Part Build Rating . | . . . . . Parts Repaired . | . . . . . Time . | . . . . . Parts Recycled . | . . . . . Recycled Matter . | . . . . . Retrieved Matter . | . . . . . Retrieved Components . | . . . . . Parts Scanalyzed 1 | . . 1 . . Part Schematics Acquired . | . . . . . Parts Damaged . | . . . . . Bothacking | -11 -10 -9 -9 -9 ------------ Run | Yrd Mat Mat Min Exi Used RIF Installer . | . . . . . Robots Hacked . | . . . . . Non-combat . | . . . . . Combat . | . . . . . Robot Hacks Applied . | . . . . . Relay Couplers Released . | . . . . . Fabnet Peak Effective % . | . . . . . Robots Rewired . | . . . . . Allies Hacked . | . . . . . Hacks Repelled . | . . . . . Allies | -11 -10 -9 -9 -9 -------- Run | Yrd Mat Mat Min Exi Total Allies . | . . . . . Largest Group . | . . . . . Highest-Rated Group . | . . . . . Highest-Rated Ally . | . . . . . Total Orders . | . . . . . Ally Attacks . | . . . . . Total Damage . | . . . . . Kills . | . . . . . Allies Corrupted . | . . . . . Allies Melted . | . . . . . Intel | -11 -10 -9 -9 -9 ------- Run | Yrd Mat Mat Min Exi Robot Analysis Total . | . . . . . Derelict Logs Recovered 1 | . . . 1 . Drone Launches . | . . . . . Drone Recoveries . | . . . . . Exploration | -11 -10 -9 -9 -9 ------------- Run | Yrd Mat Mat Min Exi Turns Passed 2585 | 3 258 843 1280 201 Spaces Moved 947 | 3 110 418 219 197 Core . | . . . . . Treads 33 | . . . 33 . Legs 542 | 3 110 418 11 . Wheels 372 | . . . 175 197 Hover . | . . . . . Flight . | . . . . . Fastest Speed 80 | 120 120 120 80 80 Average Speed 116 | 120 148 120 125 80 Slowest Speed 240 | 120 190 190 240 95 Overloaded Moves . | . . . . . Propulsion Burnouts . | . . . . . Robots Hopped . | . . . . . Cave-ins Triggered . | . . . . . Exploration Rate (%) 28 | 2 17 45 38 42 Regions Visited 4 Branch Regions 2 Pre-discovered Areas 1 | . . . 1 . Known Exits Taken 1 | . . 1 . . Unknown Exits Taken 3 | 1 1 . 1 . Scrap Searched 1 | . . . 1 . Spaces Dug 21 | . 2 16 3 . Terrain Destroyed 108 | . 2 30 37 39 Melee . | . . . . . Projectile 21 | . 2 16 3 . AOE 87 | . . 14 34 39 Terrain Rammed . | . . . . . Walls Destroyed . | . . . . . Machines Disabled . | . . . . . Actions | -11 -10 -9 -9 -9 --------- Run | Yrd Mat Mat Min Exi Total 2205 | 2 180 612 1192 219 Wait 1036 | . 32 69 935 . Move 943 | 2 109 417 218 197 Hop . | . . . . . Pick Up 24 | . 9 12 2 1 Fast Attach 9 | . 1 3 4 1 Attach 8 | . 2 3 2 1 Detach . | . . . . . Swap 31 | . 3 17 9 2 Drop 28 | . 6 15 5 2 Fire 126 | . 18 76 17 15 Melee . | . . . . . Ram . | . . . . . Kick . | . . . . . Crush . | . . . . . Escape Stasis . | . . . . . Rewire . | . . . . . Trap . | . . . . . Miscellaneous . | . . . . . Route ------- -11/Scrapyard -10/Materials -9/Materials (discovered 3 exits: [*Mat] / *Min x2) -9/Mines -9/Exiles History --------- Turn | Location | Event 1 | -11/Scrapyard | Discovered new exit (range 1) 4 | -11/Scrapyard | Entered Materials 129 | -10/Materials | Discovered new exit (range 11) 262 | -10/Materials | Entered another Materials area 262 | -9/Materials | Evolved 2 slots: Propulsion x2 333 | -9/Materials | Build established: Mutant 887 | -9/Materials | Discovered new exit (range 14) 1010 | -9/Materials | Identified exit to Mines 1105 | -9/Materials | Entered Mines 1152 | -9/Mines | Assembled infested the area 1156 | -9/Mines | Learned location of Zion (-7) 1433 | -9/Mines | Build established: Scavenger-Mutant 2222 | -9/Mines | Core integrity fell below 50% 2263 | -9/Mines | Lost 5 parts (4n1w) 2382 | -9/Mines | Deemed a non-threat by the Exiles lab entrance 2382 | -9/Mines | Discovered new exit (range 5) 2385 | -9/Mines | Entered Exiles 2411 | -9/Exiles | Met 8R-AWN 2422 | -9/Exiles | Met EX-HEX 2452 | -9/Exiles | Met EX-BIN 2483 | -9/Exiles | Aligned with FarCom system 2484 | -9/Exiles | Given EX-Vault access code 2503 | -9/Exiles | Attacked by the Exiles 2528 | -9/Exiles | Core integrity fell below 20% 2560 | -9/Exiles | Destroyed 7 combat bots 2586 | -9/Exiles | Destroyed by 8R-AWN via exploding EX-Generator Last Messages --------------- 02559_ Wheel destroyed. 02559_ HV Slug penetrates Wall. 02559_ Penetrated by HV Slug. 02559_ Lgt. Treads destroyed. 02559_ HV Slug penetrates Wall. 02561_ Penetrated by HV Slug. 02561_ HV Slug penetrates Wall. 02561_ Penetrated by HV Slug. 02561_ Critical hit (Destroy). 02561_ Cooling System destroyed. 02561_ HV Slug penetrates Wall. 02564_ Penetrated by HV Slug. 02564_ HV Slug penetrates Wall. 02564_ Penetrated by HV Slug. 02564_ Grenade Launcher destroyed. 02564_ HV Slug penetrates Wall. 02583_ HV Slug penetrates EX-Generator. 02583_ HV Slug penetrates DEC's Workstation. 02583_ HV Slug penetrates Wall. 02586_ EX-Generator explodes. Map ----- +----------------------------------------------------+ | | | | | | | ?????????????????????????????????????????????????? | | ?????????????????????????????????????????????????? | | ?????????????????????????????????????????????????? | | ?????????????????????????????????????????????????? | | ?????????????????????????????????????????????????? | | ????????????????????????????????########?????????? | | ????????????????????????????????#X #?????????? | | ?????????????????????????????????# #######???? | | ?????????????????????????????????# # ## ##??? | | ?????????????????????????????????# # ###?? | | ?????????????????????????????????# "#?? | | ?????????????????????????????????# "#?? | | ?????????????????????????????????# ""#?? | | ?????????????????????????????????# "#?? | | ?????????????????????????######### "#?? | | ?????????????????????????#""""""## # ##?? | | ?????????????????????????#"""" "" # ####??? | | ?????????????????????????#""X" #####?????? | | ?????????????????????????#" #?????????? | | ?????????????????????????#" ## #?????????? | | ?????????????????????????#" """## #?######### | | ???????????????????????#### ###### #?#"""""""# | | ???????????????????????# @ #????# #?#"""""""# | | ???????????????????????# #????# #?#"""""""# | | ???????????????????????# #???# #"" """"# | | ???????????????????????# #???# """"# | | ???????????????????????######???# """# | | ????????????????????????????????# """# | | ????????????????????????????????# """# | | ????????????????????????????????# """# | | ????????????????????????????????# """# | | ????????????????????????????????# """" | | ?????????????????????????????????# """# | | ?????????????????????????????????#" "X" """" | | ?????????????????????????????????#" """ # | | ?????????????????????????????????#" """""""""# | | ????????????????????????????????##" ########### | | ???????????????????????????????##"" #?????????? | | ???????????????????????????#?###"" #?????????? | | ???????????????????????????""""""" ##????????? | | ??????????????????????????""" " "" ##???##### | | ????????????????????????" """ " #####"""" | | ??????????????????????? " " " "" | | ?????????????????????? "" | | ?????????????????????? " | | ?????????????????????? | | ?????????????????????? | +----------------------------------------------------+ Best States ------------- Heat Dissipation 50 Energy Generation 14 Energy Capacity 280 Matter Stores 300 Matter Capacity 450 Sight Range 20 Terrain Scan Density 10 Armor Coverage 150 Evasion (%) 55 Recoil Reduction 1 Item Schematics ----------------- None Robot Schematics ------------------ None Fabricated ------------ Nothing Alien Tech Used ----------------- None Achievements -------------- None Challenges ------------ None Game ------ Seed AuthchipOpticalRedirector Manual? 0 Play Time 00:29:05 Cumulative 89.1 hours Start 2024.03.06 @ 10:37:00 End 2024.03.06 @ 11:03:07 Sessions 1 Manual Loads 0 Difficulty Rogue Special Mode None Game No. 77 Rogue 77 Adventurer 0 Explorer 0 Win Type - Total 3 Types 3/0/0/0/0/0/0/0/0 Lore% 26 Gallery% 42 Achievement% 32 Wizard Run 0 Options --------- Layout 2 ASCII 0 Keyboard 0 Movement Numpad Keybinds 1 Fullscreen 2 Font 24/Terminus Map View 50x44 Zoom Use 0% Tactical HUD 1 Map Filters NONE Filters BRIGHTNESS(115)|LOW_CONTRAST(0,16,30) Steam 1 RUN: 3b660960-76bb-4574-9d4b-9b0d9e026ef0